fUST/lending_fUST_20250605
["ID","MTS","AMOUNT","RATE_DAILY","PERIOD"]
[364491155,1749120643962,-440.0,0.00019452,2]
[364491157,1749120643973,-440.0,0.00019452,2]
[364491159,1749120643982,-440.0,0.00019452,2]
[364491161,1749120643991,-440.0,0.00019452,2]
[364491163,1749120644000,-449.69,0.00019452,2]
[364491165,1749120644009,-358.54206887,0.00019452,2]
[364491167,1749120644019,-440.0,0.00019452,2]
[364491169,1749120644028,-2621.04,0.00019452,2]
[364491171,1749120644038,-440.0,0.00019452,2]
[364491173,1749120644047,-440.0,0.00019452,2]
[364491175,1749120644056,-563.4,0.00019452,2]
[364491177,1749120644066,-1603.39,0.00019452,2]
[364491179,1749120644075,-440.0,0.00019452,2]
[364491181,1749120644084,-1735.19,0.00019452,2]
[364491183,1749120644093,-440.0,0.00019452,2]
[364491185,1749120644103,-609.58,0.00019452,2]
[364491187,1749120644112,-1074.21,0.00019452,2]
[364491189,1749120644121,-440.0,0.00019452,2]
[364491191,1749120644130,-440.0,0.00019452,2]
[364491193,1749120644139,-583.66,0.00019452,2]
[364491195,1749120644148,-151.0,0.00019452,2]
[364491197,1749120644157,-1078.73,0.00019452,2]
[364491199,1749120644166,-440.0,0.00019452,2]
[364491201,1749120644176,-440.0,0.00019452,2]
[364491202,1749120644185,-440.0,0.00019452,2]
[364491204,1749120644194,-440.0,0.00019452,2]
[364491206,1749120644204,-440.0,0.00019452,2]
[364491208,1749120644213,-151.0,0.00019452,2]
[364491210,1749120644223,-948.08,0.00019452,2]
[364491212,1749120644233,-440.0,0.00019452,2]
[364491214,1749120644242,-440.0,0.00019452,2]
[364491216,1749120644251,-440.0,0.00019452,2]
[364491218,1749120644260,-807.25,0.00019452,2]
[364491220,1749120644270,-440.0,0.00019452,2]
[364491222,1749120644279,-440.0,0.00019452,2]
[364491224,1749120644288,-454.64,0.00019452,2]
[364491226,1749120644301,-440.0,0.00019452,2]
[364491228,1749120644312,-440.0,0.00019452,2]
[364491230,1749120644321,-1149.08,0.00019452,2]
[364491232,1749120644330,-440.0,0.00019452,2]
[364491234,1749120644340,-423.50918369,0.00019452,2]
[364491236,1749120644350,-631.36,0.00019452,2]
[364491238,1749120644360,-432.44963458,0.00019452,2]
[364491240,1749120644369,-1087.02,0.00019452,2]
[364491242,1749120644380,-2091.84,0.00019452,2]
[364491244,1749120644390,-440.0,0.00019452,2]
[364491246,1749120644399,-1507.63,0.00019452,2]
[364491248,1749120644408,-440.0,0.00019452,2]
[364491250,1749120644418,-440.0,0.00019452,2]
[364491252,1749120644427,-440.0,0.00019452,2]
[364491255,1749120644437,-153.099473,0.00019537,2]
[364491257,1749120644447,-153.099473,0.00019537,2]
[364491259,1749120644456,-151.0,0.00019537,2]
[364491261,1749120644466,-151.0,0.00019537,2]
[364491262,1749120644475,-151.0,0.00019537,2]
[364491264,1749120644484,-500.0,0.00019538,2]
[364491266,1749120644493,-500.0,0.00019557,2]
[364491268,1749120644502,-500.0,0.00019557,2]
[364491270,1749120644511,-519.35444916,0.00019557,2]
[364491272,1749120644521,-1841.71774051,0.0001959,2]
[364491274,1749120644530,-151.0,0.0001959,2]
[364491276,1749120644539,-288.63107863,0.0001961,2]
[364491278,1749120644548,-1011.30430219,0.0001961,2]
[364491280,1749120644557,-1000.0,0.0001963,2]
[364491282,1749120644567,-420.0,0.00019636,2]
[364491284,1749120644575,-518.95928991,0.00019638,2]
[364491286,1749120644585,-210.732742,0.00019644,2]
[364491288,1749120644594,-210.732742,0.00019644,2]
[364491290,1749120644603,-500.0,0.00019649,2]
[364491292,1749120644614,-500.0,0.00019649,2]
[364491294,1749120644623,-550.45993663,0.00019653,2]
[364491296,1749120644632,-500.0,0.00019653,2]
[364491298,1749120644641,-500.0,0.00019653,2]
[364491300,1749120644650,-500.0,0.00019655,2]
[364491302,1749120644660,-500.0,0.00019655,2]
[364491304,1749120644669,-502.67348192,0.00019665,2]
[364491306,1749120644679,-1002.66042553,0.00019721,2]
[364491308,1749120644688,-1000.0,0.00019721,2]
[364491310,1749120644698,-1004.90978063,0.00019721,2]
[364491312,1749120644707,-1000.0,0.00019721,2]
[364491314,1749120644716,-694.84667099,0.00019721,2]
[364491316,1749120644725,-1000.0,0.00019721,2]
[364491318,1749120644733,-516.50162892,0.00019721,2]
[364491320,1749120644742,-615.078262,0.00019724,2]
[364491322,1749120644751,-615.078262,0.00019724,2]
[364491324,1749120644761,-2619.24,0.00019724,2]
[364491326,1749120644770,-907.14,0.00019724,2]
[364491328,1749120644779,-440.0,0.00019726,2]
[364491329,1749120644789,-366.45112566,0.00019726,2]
[364491332,1749120644799,-151.0,0.00019726,2]
[364491333,1749120644808,-375.19752,0.00019726,2]
[364491335,1749120644817,-375.19752,0.00019726,2]
[364491337,1749120644826,-440.0,0.00019726,2]
[364491339,1749120644835,-151.0,0.00019726,2]
[364491341,1749120644844,-151.0,0.00019726,2]
[364491343,1749120644853,-440.0,0.00019726,2]
[364491345,1749120644862,-440.0,0.00019726,2]
[364491347,1749120644872,-440.0,0.00019726,2]
[364491349,1749120644881,-440.0,0.00019726,2]
[364491351,1749120644891,-440.0,0.00019726,2]
[364491353,1749120644900,-153.099473,0.00019726,2]
[364491355,1749120644909,-153.099473,0.00019726,2]
[364491357,1749120644918,-322.3327829,0.00019726,2]
[364491359,1749120644927,-151.0,0.00019726,2]
[364491361,1749120644937,-440.0,0.00019726,2]
[364491363,1749120644946,-440.0,0.00019726,2]
[364491365,1749120644955,-440.0,0.00019726,2]
[364491367,1749120644965,-378.72962199,0.00019726,2]
[364491369,1749120644974,-440.0,0.00019726,2]
[364491371,1749120644983,-440.0,0.00019726,2]
[364491373,1749120644993,-2371.35,0.00019726,2]
[364491375,1749120645002,-151.0,0.00019726,2]
[364491377,1749120645012,-440.0,0.00019726,2]
[364491379,1749120645021,-440.0,0.00019726,2]
[364491380,1749120645030,-151.0,0.00019726,2]
[364491383,1749120645040,-515.48,0.00019726,2]
[364491384,1749120645050,-440.0,0.00019726,2]
[364491386,1749120645058,-440.0,0.00019726,2]
[364491388,1749120645068,-440.0,0.00019726,2]
[364491390,1749120645077,-440.0,0.00019726,2]
[364491392,1749120645086,-440.0,0.00019726,2]
[364491394,1749120645095,-579.60361192,0.00019726,2]
[364491396,1749120645104,-440.0,0.00019726,2]
[364491398,1749120645114,-449.69,0.00019726,2]
[364491400,1749120645123,-440.0,0.00019726,2]
[364491402,1749120645132,-2621.04,0.00019726,2]
[364491404,1749120645141,-440.0,0.00019726,2]
[364491406,1749120645151,-440.0,0.00019726,2]
[364491408,1749120645160,-563.4,0.00019726,2]
[364491410,1749120645169,-1603.39,0.00019726,2]
[364491412,1749120645178,-440.0,0.00019726,2]
[364491414,1749120645187,-1735.19,0.00019726,2]
[364491416,1749120645197,-440.0,0.00019726,2]
[364491418,1749120645206,-609.58,0.00019726,2]
[364491420,1749120645215,-1074.21,0.00019726,2]
[364491422,1749120645224,-440.0,0.00019726,2]
[364491423,1749120645233,-390.0,0.00019726,2]
[364491425,1749120645243,-583.66,0.00019726,2]
[364491427,1749120645252,-151.0,0.00019726,2]
[364491429,1749120645262,-1078.73,0.00019726,2]
[364491431,1749120645271,-440.0,0.00019726,2]
[364491433,1749120645280,-440.0,0.00019726,2]
[364491435,1749120645289,-440.0,0.00019726,2]
[364491437,1749120645299,-440.0,0.00019726,2]
[364491439,1749120645311,-440.0,0.00019726,2]
[364491441,1749120645319,-218.593782,0.00019726,2]
[364491443,1749120645328,-948.08,0.00019726,2]
[364491445,1749120645337,-440.0,0.00019726,2]
[364491447,1749120645346,-440.0,0.00019726,2]
[364491449,1749120645355,-440.0,0.00019726,2]
[364491451,1749120645364,-807.25,0.00019726,2]
[364491466,1749120645499,-440.0,0.00019726,2]
[364491468,1749120645509,-440.0,0.00019726,2]
[364491470,1749120645519,-454.64,0.00019726,2]
[364491472,1749120645528,-440.0,0.00019726,2]
[364491474,1749120645538,-440.0,0.00019726,2]
[364491476,1749120645547,-1149.08,0.00019726,2]
[364491478,1749120645556,-440.0,0.00019726,2]
[364491480,1749120645566,-631.36,0.00019726,2]
[364491482,1749120645575,-1087.02,0.00019726,2]
[364491484,1749120645585,-2091.84,0.00019726,2]
[364491486,1749120645594,-440.0,0.00019726,2]
[364491488,1749120645604,-1507.63,0.00019726,2]
[364491490,1749120645614,-440.0,0.00019726,2]
[364491492,1749120645623,-440.0,0.00019726,2]
[364491493,1749120645632,-440.0,0.00019726,2]
[364491495,1749120645642,-1841.71774051,0.00019831,2]
[364491497,1749120645651,-423.915,0.00019874,2]
[364491499,1749120645661,-151.0,0.00019899,2]
[364491501,1749120645671,-60673.3511925,0.000199,2]
[364491504,1749120645680,-211.039653,0.000199,2]
[364491506,1749120645690,-375.19752,0.000199,2]
[364491507,1749120645700,-375.19752,0.000199,2]
[364491509,1749120645708,-210.732742,0.000199,2]
[364491511,1749120645718,-210.732742,0.000199,2]
[364491513,1749120645729,-151.0,0.000199,2]
[364491515,1749120645739,-151.0,0.000199,2]
[364491517,1749120645748,-615.078262,0.000199,2]
[364491519,1749120645758,-615.078262,0.000199,2]
[364491521,1749120645767,-153.099473,0.000199,2]
[364491523,1749120645776,-153.099473,0.000199,2]
[364491525,1749120645785,-151.0,0.000199,2]
[364491527,1749120645795,-151.0,0.000199,2]
[364491529,1749120645805,-207.13014,0.000199,2]
[364491531,1749120645814,-4447.99911634,0.00019965,2]
[364491533,1749120645823,-2619.24,0.00019998,2]
[364491535,1749120645832,-907.14,0.00019998,2]
[364491537,1749120645847,-276.423045,0.0002,2]
[364491539,1749120645856,-56012.0,0.0002,2]
[364491541,1749120645866,-440.0,0.0002,2]
[364491543,1749120645875,-227.82757494,0.0002,5]
[364491545,1749120645884,-375.19752,0.0002,2]
[364491547,1749120645894,-375.19752,0.0002,2]
[364491549,1749120645904,-210.732742,0.0002,2]
[364491551,1749120645913,-440.0,0.0002,2]
[364491553,1749120645923,-210.732742,0.0002,2]
[364491555,1749120645932,-151.0,0.0002,2]
[364491557,1749120645942,-151.0,0.0002,2]
[364491559,1749120645951,-409.89430423,0.0002,2]
[364491561,1749120645961,-1000.0,0.0002,20]
[364491563,1749120645970,-440.0,0.0002,2]
[364491565,1749120645980,-615.078262,0.0002,2]
[364491567,1749120645990,-615.078262,0.0002,2]
[364491569,1749120645999,-440.0,0.0002,2]
[364491571,1749120646008,-440.0,0.0002,2]
[364491573,1749120646018,-440.0,0.0002,2]
[364491575,1749120646027,-153.099473,0.0002,2]
[364491577,1749120646035,-153.099477,0.0002,2]
[364491579,1749120646045,-151.0,0.0002,2]
[364491581,1749120646055,-151.0,0.0002,2]
[364491583,1749120646065,-440.0,0.0002,2]
[364491585,1749120646074,-440.0,0.0002,2]
[364491586,1749120646084,-440.0,0.0002,2]
[364491588,1749120646094,-300.0,0.0002,2]
[364491590,1749120646103,-440.0,0.0002,2]
[364491592,1749120646113,-440.0,0.0002,2]
[364491594,1749120646122,-2371.35,0.0002,2]
[364491596,1749120646131,-440.0,0.0002,2]
[364491598,1749120646141,-440.0,0.0002,2]
[364491600,1749120646150,-515.48,0.0002,2]
[364491602,1749120646160,-440.0,0.0002,2]
[364491605,1749120646170,-440.0,0.0002,2]
[364491607,1749120646179,-440.0,0.0002,2]
[364491609,1749120646189,-440.0,0.0002,2]
[364491611,1749120646198,-440.0,0.0002,2]
[364491614,1749120646208,-440.0,0.0002,2]
[364491616,1749120646217,-449.69,0.0002,2]
[364491618,1749120646227,-440.0,0.0002,2]
[364491620,1749120646236,-2621.04,0.0002,2]
[364491622,1749120646246,-440.0,0.0002,2]
[364491623,1749120646255,-440.0,0.0002,2]
[364491625,1749120646265,-563.4,0.0002,2]
[364491628,1749120646274,-1603.39,0.0002,2]
[364491630,1749120646287,-440.0,0.0002,2]
[364491632,1749120646297,-1735.19,0.0002,2]
[364491634,1749120646311,-440.0,0.0002,2]
[364491636,1749120646324,-609.58,0.0002,2]
[364491638,1749120646335,-1074.21,0.0002,2]
[364491640,1749120646347,-440.0,0.0002,2]
[364491642,1749120646357,-583.66,0.0002,2]
[364491644,1749120646367,-1078.73,0.0002,2]
[364491646,1749120646377,-440.0,0.0002,2]
[364491648,1749120646386,-440.0,0.0002,2]
[364491650,1749120646396,-440.0,0.0002,2]
[364491652,1749120646405,-440.0,0.0002,2]
[364491653,1749120646415,-440.0,0.0002,2]
[364491655,1749120646425,-948.08,0.0002,2]
[364491657,1749120646435,-440.0,0.0002,2]
[364491659,1749120646445,-440.0,0.0002,2]
[364491661,1749120646454,-440.0,0.0002,2]
[364491663,1749120646463,-807.25,0.0002,2]
[364491665,1749120646473,-440.0,0.0002,2]
[364491667,1749120646483,-440.0,0.0002,2]
[364491669,1749120646492,-454.64,0.0002,2]
[364491671,1749120646502,-440.0,0.0002,2]
[364491673,1749120646511,-182.68,0.0002,2]
[364491675,1749120646521,-1149.08,0.0002,2]
[364491677,1749120646531,-440.0,0.0002,2]
[364491679,1749120646540,-631.36,0.0002,2]
[364491681,1749120646550,-1087.02,0.0002,2]
[364491683,1749120646559,-2091.84,0.0002,2]
[364491685,1749120646568,-440.0,0.0002,2]
[364491687,1749120646578,-1507.63,0.0002,2]
[364491689,1749120646587,-440.0,0.0002,2]
[364491691,1749120646596,-440.0,0.0002,2]
[364491692,1749120646606,-440.0,0.0002,2]
[364491694,1749120646615,-1841.71774051,0.00020072,2]
[364491696,1749120646625,-5703.02,0.00020083,2]
[364491698,1749120646635,-501.95007019,0.00020086,2]
[364491700,1749120646644,-500.0,0.00020105,2]
[364491702,1749120646654,-501.11559569,0.00020105,2]
[364491704,1749120646664,-151.0,0.00020174,2]
[364491706,1749120646673,-151.0,0.00020174,2]
[364491708,1749120646683,-200.454904,0.00020174,2]
[364491710,1749120646693,-200.454904,0.00020174,2]
[364491712,1749120646702,-1516.1585272,0.00020178,2]
[364491714,1749120646712,-244.854113,0.00020187,2]
[364491716,1749120646722,-508.94531069,0.00020197,2]
[364491718,1749120646732,-1000.0,0.00020197,2]
[364491720,1749120646742,-1000.0,0.00020201,2]
[364491722,1749120646751,-1000.0,0.00020201,2]
[364491724,1749120646760,-545.22859584,0.00020203,2]
[364491726,1749120646769,-481.56516768,0.00020203,2]
[364491728,1749120646779,-157.76505856,0.00020225,2]
[364491730,1749120646788,-1500.0,0.00020268,2]
[364491732,1749120646798,-1500.0,0.00020268,2]
[364491734,1749120646809,-1500.0,0.00020268,2]
[364491736,1749120646818,-2619.24,0.00020272,2]
[364491738,1749120646827,-907.14,0.00020272,2]
[364491740,1749120646837,-151.0,0.00020273,2]
[364491742,1749120646846,-440.0,0.00020273,2]
[364491744,1749120646856,-210.732742,0.00020273,2]
[364491746,1749120646864,-390.0,0.00020273,2]
[364491747,1749120646873,-210.732742,0.00020273,2]
[364491749,1749120646883,-440.0,0.00020273,2]
[364491751,1749120646893,-615.078262,0.00020273,2]
[364491752,1749120646902,-615.078262,0.00020273,2]
[364491753,1749120646911,-440.0,0.00020273,2]
[364491754,1749120646921,-440.0,0.00020273,2]
[364491755,1749120646931,-440.0,0.00020273,2]
[364491756,1749120646941,-151.0,0.00020273,2]
[364491757,1749120646950,-440.0,0.00020273,2]
[364491758,1749120646960,-440.0,0.00020273,2]
[364491759,1749120646970,-440.0,0.00020273,2]
[364491761,1749120646979,-440.0,0.00020273,2]
[364491762,1749120646988,-440.0,0.00020273,2]
[364491763,1749120646998,-2371.35,0.00020273,2]
[364491764,1749120647007,-440.0,0.00020273,2]
[364491765,1749120647016,-440.0,0.00020273,2]
[364491766,1749120647025,-515.48,0.00020273,2]
[364491767,1749120647034,-440.0,0.00020273,2]
[364491768,1749120647044,-362.37,0.00020273,2]
[364491769,1749120647053,-440.0,0.00020273,2]
[364491770,1749120647062,-440.0,0.00020273,2]
[364491771,1749120647071,-440.0,0.00020273,2]
[364491772,1749120647080,-440.0,0.00020273,2]
[364491773,1749120647090,-449.69,0.00020273,2]
[364491781,1749120647099,-440.0,0.00020273,2]
[364491783,1749120647204,-2621.04,0.00020273,2]
[364491785,1749120647213,-440.0,0.00020273,2]
[364491787,1749120647222,-440.0,0.00020273,2]
[364491789,1749120647232,-563.4,0.00020273,2]
[364491791,1749120647242,-1603.39,0.00020273,2]
[364491793,1749120647251,-440.0,0.00020273,2]
[364491795,1749120647260,-1735.19,0.00020273,2]
[364491797,1749120647269,-440.0,0.00020273,2]
[364491799,1749120647279,-609.58,0.00020273,2]
[364491801,1749120647288,-1074.21,0.00020273,2]
[364491803,1749120647298,-440.0,0.00020273,2]
[364491805,1749120647312,-583.66,0.00020273,2]
[364491807,1749120647322,-1078.73,0.00020273,2]
[364491809,1749120647331,-440.0,0.00020273,2]
[364491811,1749120647341,-440.0,0.00020273,2]
[364491813,1749120647350,-440.0,0.00020273,2]
[364491815,1749120647360,-440.0,0.00020273,2]
[364491817,1749120647370,-440.0,0.00020273,2]
[364491819,1749120647380,-948.08,0.00020273,2]
[364491821,1749120647389,-440.0,0.00020273,2]
[364491823,1749120647398,-440.0,0.00020273,2]
[364491825,1749120647408,-440.0,0.00020273,2]
[364491827,1749120647417,-807.25,0.00020273,2]
[364491829,1749120647427,-440.0,0.00020273,2]
[364491831,1749120647436,-440.0,0.00020273,2]
[364491833,1749120647445,-454.64,0.00020273,2]
[364491835,1749120647455,-440.0,0.00020273,2]
[364491837,1749120647464,-1149.08,0.00020273,2]
[364491839,1749120647474,-440.0,0.00020273,2]
[364491841,1749120647483,-631.36,0.00020273,2]
[364491843,1749120647493,-1087.02,0.00020273,2]
[364491845,1749120647502,-2091.84,0.00020273,2]
[364491847,1749120647512,-440.0,0.00020273,2]
[364491849,1749120647521,-1507.63,0.00020273,2]
[364491851,1749120647531,-440.0,0.00020273,2]
[364491853,1749120647540,-440.0,0.00020273,2]
[364491855,1749120647549,-440.0,0.00020273,2]
[364491857,1749120647559,-1841.71774051,0.00020314,3]
[364491859,1749120647569,-167.67824614,0.000205,2]
[364491861,1749120647578,-1688.0,0.0002051,2]
[364491863,1749120647587,-500.0,0.0002051,2]
[364491865,1749120647597,-207.4,0.0002051,2]
[364491867,1749120647606,-500.0,0.0002051,2]
[364491869,1749120647614,-500.0,0.0002051,2]
[364491871,1749120647623,-500.0,0.0002051,2]
[364491873,1749120647633,-619.45991527,0.0002051,2]
[364491875,1749120647644,-500.0,0.0002051,2]
[364491877,1749120647653,-500.0,0.0002051,2]
[364491879,1749120647662,-500.0,0.0002051,2]
[364491881,1749120647672,-500.0,0.0002051,2]
[364491883,1749120647680,-500.0,0.0002051,2]
[364491884,1749120647689,-500.0,0.0002051,2]
[364491886,1749120647699,-500.0,0.0002051,2]
[364491888,1749120647707,-500.0,0.0002051,2]
[364491890,1749120647717,-500.0,0.0002051,2]
[364491892,1749120647726,-500.0,0.0002051,2]
[364491894,1749120647735,-500.0,0.0002051,2]
[364491896,1749120647745,-500.0,0.0002051,2]
[364491898,1749120647754,-500.0,0.0002051,2]
[364491900,1749120647763,-500.0,0.0002051,2]
[364491902,1749120647773,-500.0,0.0002051,2]
[364491904,1749120647782,-500.0,0.0002051,2]
[364491906,1749120647791,-500.0,0.0002051,2]
[364491908,1749120647800,-500.0,0.0002051,2]
[364491910,1749120647810,-305.49247512,0.0002051,2]
[364491912,1749120647819,-500.0,0.0002051,2]
[364491914,1749120647829,-3784.4197749,0.0002051,2]
[364491916,1749120647838,-500.0,0.0002051,2]
[364491918,1749120647848,-500.0,0.0002051,2]
[364491921,1749120647859,-500.0,0.0002051,2]
[364491922,1749120647868,-500.0,0.0002051,2]
[364491924,1749120647878,-500.0,0.0002051,2]
[364491926,1749120647888,-375.19752,0.00020546,2]
[364491928,1749120647897,-375.19752,0.00020546,2]
[364491930,1749120647906,-151.0,0.00020546,2]
[364491932,1749120647916,-151.0,0.00020546,2]
[364491934,1749120647925,-2619.24,0.00020546,2]
[364491936,1749120647935,-907.14,0.00020546,2]
[364491938,1749120647944,-293.52,0.00020547,2]
[364491940,1749120647954,-440.0,0.00020547,2]
[364491942,1749120647963,-233.05673029,0.00020547,2]
[364491944,1749120647973,-440.0,0.00020547,2]
[364491946,1749120647982,-440.0,0.00020547,2]
[364491948,1749120647991,-440.0,0.00020547,2]
[364491950,1749120648000,-440.0,0.00020547,2]
[364491952,1749120648009,-440.0,0.00020547,2]
[364491954,1749120648019,-440.0,0.00020547,2]
[364491956,1749120648029,-440.0,0.00020547,2]
[364491958,1749120648038,-2371.35,0.00020547,2]
[364491960,1749120648048,-440.0,0.00020547,2]
[364491962,1749120648058,-440.0,0.00020547,2]
[364491964,1749120648067,-515.48,0.00020547,2]
[364491966,1749120648076,-440.0,0.00020547,2]
[364491968,1749120648086,-440.0,0.00020547,2]
[364491970,1749120648095,-208.99529403,0.00020547,2]
[364491972,1749120648105,-400.0,0.00020547,2]
[364491974,1749120648115,-400.0,0.00020547,2]
[364491976,1749120648125,-400.0,0.00020547,2]
[364491978,1749120648135,-400.0,0.00020547,2]
[364491979,1749120648145,-400.0,0.00020547,2]
[364491981,1749120648155,-536.47,0.00020547,2]
[364491983,1749120648165,-440.0,0.00020547,2]
[364491985,1749120648175,-440.0,0.00020547,2]
[364491987,1749120648186,-449.69,0.00020547,2]
[364491990,1749120648196,-440.0,0.00020547,2]
[364491992,1749120648206,-2621.04,0.00020547,2]
[364491994,1749120648215,-440.0,0.00020547,2]
[364491995,1749120648225,-440.0,0.00020547,2]
[364491997,1749120648236,-563.4,0.00020547,2]
[364492000,1749120648246,-1603.39,0.00020547,2]
[364492001,1749120648255,-440.0,0.00020547,2]
[364492003,1749120648265,-1735.19,0.00020547,2]
[364492005,1749120648274,-440.0,0.00020547,2]
[364492007,1749120648284,-609.58,0.00020547,2]
[364492009,1749120648293,-1074.21,0.00020547,2]
[364492011,1749120648305,-440.0,0.00020547,2]
[364492013,1749120648314,-583.66,0.00020547,2]
[364492015,1749120648324,-1078.73,0.00020547,2]
[364492017,1749120648333,-440.0,0.00020547,2]
[364492019,1749120648343,-440.0,0.00020547,2]
[364492021,1749120648352,-440.0,0.00020547,2]
[364492023,1749120648362,-440.0,0.00020547,2]
[364492025,1749120648371,-440.0,0.00020547,2]
[364492027,1749120648382,-948.08,0.00020547,2]
[364492029,1749120648391,-440.0,0.00020547,2]
[364492031,1749120648401,-440.0,0.00020547,2]
[364492033,1749120648410,-440.0,0.00020547,2]
[364492035,1749120648419,-807.25,0.00020547,2]
[364492037,1749120648428,-440.0,0.00020547,2]
[364492039,1749120648438,-440.0,0.00020547,2]
[364492041,1749120648447,-454.64,0.00020547,2]
[364492043,1749120648457,-277.19311173,0.00020547,2]
[364492045,1749120648466,-1149.08,0.00020547,2]
[364492047,1749120648476,-440.0,0.00020547,2]
[364492049,1749120648486,-631.36,0.00020547,2]
[364492051,1749120648495,-1087.02,0.00020547,2]
[364492053,1749120648504,-2091.84,0.00020547,2]
[364492055,1749120648513,-440.0,0.00020547,2]
[364492057,1749120648522,-1507.63,0.00020547,2]
[364492059,1749120648531,-440.0,0.00020547,2]
[364492061,1749120648540,-440.0,0.00020547,2]
[364492062,1749120648549,-440.0,0.00020547,2]
[364492064,1749120648559,-1841.71774051,0.00020555,3]
[364492066,1749120648568,-210.732742,0.00020565,2]
[364492068,1749120648577,-210.732742,0.00020565,2]
[364492070,1749120648586,-1750.456,0.00020565,2]
[364492072,1749120648595,-24997.58,0.000206,2]
[364492074,1749120648605,-2699.98,0.000206,2]
[364492076,1749120648614,-3957.36,0.000206,2]
[364492078,1749120648624,-920.61653262,0.0002062,2]
[364492080,1749120648634,-4447.99911634,0.00020683,2]
[364492082,1749120648643,-404.92268683,0.00020745,2]
[364492084,1749120648653,-688.27137293,0.00020749,2]
[364492086,1749120648662,-1012.17992001,0.00020749,2]
[364492096,1749120648738,-1841.71774051,0.00020797,4]
[364492098,1749120648755,-2000.0,0.00020816,2]
[364492100,1749120648765,-520.41100821,0.00020816,2]
[364492102,1749120648774,-509.80594734,0.00020816,2]
[364492104,1749120648783,-2619.24,0.0002082,2]
[364492106,1749120648792,-907.14,0.0002082,2]
[364492108,1749120648802,-151.0,0.00020821,2]
[364492110,1749120648811,-440.0,0.00020821,2]
[364492112,1749120648820,-615.078262,0.00020821,2]
[364492114,1749120648830,-615.078262,0.00020821,2]
[364492116,1749120648839,-440.0,0.00020821,2]
[364492118,1749120648848,-440.0,0.00020821,2]
[364492120,1749120648858,-440.0,0.00020821,2]
[364492122,1749120648867,-440.0,0.00020821,2]
[364492124,1749120648876,-440.0,0.00020821,2]
[364492126,1749120648885,-440.0,0.00020821,2]
[364492128,1749120648895,-440.0,0.00020821,2]
[364492130,1749120648904,-2371.35,0.00020821,2]
[364492132,1749120648913,-440.0,0.00020821,2]
[364492134,1749120648923,-440.0,0.00020821,2]
[364492136,1749120648932,-515.48,0.00020821,2]
[364492138,1749120648941,-440.0,0.00020821,2]
[364492140,1749120648950,-440.0,0.00020821,2]
[364492142,1749120648959,-440.0,0.00020821,2]
[364492144,1749120648968,-281.37357406,0.00020821,2]
[364492146,1749120648978,-449.69,0.00020821,2]
[364492148,1749120648987,-440.0,0.00020821,2]
[364492150,1749120648997,-2621.04,0.00020821,2]